Cogmind - Beta 16.1 @@@ ROGUE MODE // 2026.02.13 @ 21:16:44 Player: Genericgamer16 Result: Destroyed by Y-45 Defender with Heavy Assault Rifle Performance ------------- Evolutions (1) 500 Regions Visited (5) 1000 Robots Destroyed (60) 300 Value Destroyed (2070) 2070 Prototype IDs (5) 100 Alien Tech Used (0) 0 Bonus (1134) 1134 TOTAL SCORE: 5104 Bonus ------- High Alert Combat Kills 92 Follower Combat Kills 342 Entered Garrisons 200 Used RIF Installer 500 Cogmind --------- Core Integrity 0/400 Matter 59/300 Energy 245/265 System Corruption 0% Temperature Cool (10) Movement Treading (160) Location -9/Garrison Parts ------- > --- POWER (1) -------- Improved Ion Engine > --- PROPULSION (2) --- Light Treads Light Treads > --- UTILITY (4) ------ Heat Sink Large Storage Unit Advanced Targeting Computer Advanced Targeting Computer > --- WEAPON (2) ------- Heavy Assault Rifle Improved Light Cannon > --- INVENTORY (15) --- Ion Engine Improved Ion Engine Light Treads Aluminum Leg Aluminum Leg Experimental Sensor Array Relay Coupler [NC] (29) Relay Coupler [Grunt] (23) Relay Coupler [Grunt] (21) Beam Rifle Shock Bomb Launcher Shock Bomb Launcher Guided EMP Blaster (10) Peak State ------------ > --- POWER ------------ Improved Ion Engine > --- PROPULSION ------- Light Treads Light Treads > --- UTILITY ---------- Improved Heat Sink Large Storage Unit Improved Terrain Scanner Terrain Scan Processor > --- WEAPON ----------- Guided EMP Blaster > --- INVENTORY -------- Ion Engine Light Ion Engine Light Treads Aluminum Leg Aluminum Leg Aluminum Leg Heat Sink Weight Redist. System Weight Redist. System Experimental Sensor Array Light Armor Plating Improved Assault Rifle Makeshift Sword [Rating: 27] Favorites ----------- Power Improved Ion Engine Engine Improved Ion Engine Power Core Light Nuclear Core Propulsion Light Treads Treads Light Treads Leg Aluminum Leg Wheel Compact Wheel Flight Unit VTOL Module Utility Large Storage Unit Device Improved Heat Sink Storage Large Storage Unit Processor Terrain Scan Processor Protection Light Armor Plating Weapon Medium Laser Energy Gun Medium Laser Energy Cannon Beam Cannon Ballistic Gun Improved Assault Rifle Ballistic Cannon Improved Light Cannon Launcher Grenade Launcher Special Weapon Mining Laser Slashing Weapon Makeshift Sword Build | -11 -10 -10 -9 -9 -9 ------- Run | Yrd Mat Min Mat Sto Gar Slots Evolved 2 | . . . 2 . . Power . | . . . . . . Propulsion . | . . . . . . Utility 2 | . . . 2 . . Weapon . | . . . . . . Parts Attached 60 | 5 7 14 6 18 10 Power 8 | 1 . 2 1 3 1 Engine 7 | 1 . 2 1 2 1 Core 1 | . . . . 1 . Reactor . | . . . . . . Propulsion 14 | 2 . 4 2 5 1 Treads 9 | 2 . . 2 4 1 Leg 2 | . . 2 . . . Wheel 2 | . . 2 . . . Hover . | . . . . . . Flight 1 | . . . . 1 . Utility 22 | 1 4 4 3 2 8 Device 13 | . 2 4 2 2 3 Storage 3 | 1 2 . . . . Processor 3 | . . . 1 . 2 Hackware . | . . . . . . Protection 3 | . . . . . 3 Artifact . | . . . . . . Weapon 16 | 1 3 4 . 8 . Energy Gun 2 | 1 1 . . . . Energy Cannon 2 | . 1 . . 1 . Ballistic Gun 4 | . 1 . . 3 . Ballistic Cannon 1 | . . . . 1 . Launcher 4 | . . 2 . 2 . Special Weapon 2 | . . 2 . . . Impact Weapon . | . . . . . . Slashing Weapon 1 | . . . . 1 . Piercing Weapon . | . . . . . . Special Melee Weapon . | . . . . . . Unidentified Prototypes 2 | . . 1 . 1 . Parts Lost 20 | . 2 5 . 7 6 Power 4 | . 1 1 . 2 . Propulsion 3 | . . 1 . 1 1 Utility 8 | . 1 1 . 1 5 Weapon 5 | . . 2 . 3 . Highest Loss Streak 4 | . 1 4 . 2 3 To Critical Strikes 1 | . 1 . . . . Average Backups 13 | 4 12 14 13 14 13 Power 1 | . 1 . . 1 2 Propulsion 3 | 2 4 4 2 3 4 Utility 4 | . 3 4 8 5 3 Weapon 3 | 1 2 4 3 3 3 Tool/Special . | . . . . . . Unused Backups 29 | . 4 2 4 7 12 Power 3 | . . . . 1 2 Propulsion 11 | . 3 1 2 2 3 Utility 11 | . . . 2 4 5 Weapon 4 | . 1 1 . . 2 Tool/Special . | . . . . . . Average Slot Usage (%) 95 | . 93 93 95 99 97 Engine 10 | . 10 13 11 8 11 Treads 18 | . 28 11 4 18 21 Leg 1 | . . 2 9 . . Wheel 3 | . . 11 6 . . Device 16 | . 12 11 26 22 17 Storage 12 | . 14 14 11 11 11 Processor 3 | . . . 3 11 . Protection 2 | . . . . . 13 Energy Gun 8 | . 23 4 8 1 . Energy Cannon 5 | . 1 12 11 6 . Ballistic Gun 3 | . 1 . . 7 5 Ballistic Cannon 2 | . . . . 1 11 Launcher 2 | . . 7 . . 5 Special Weapon 1 | . . 3 2 3 . Peak Build Rating 27 | 5 8 16 18 27 21 Average Rating 13 | 3 7 9 16 19 16 On Entrance 10 | . 5 7 10 18 21 Avg Prop Armor Cover (%) 6 | . . . 8 2 . Naked Turns . | . . . . . . Heaviest Build 42 | 12 37 32 34 36 42 Greatest Support 40 | 40 40 40 40 40 40 Greatest Overweight (x) 2 | 2 . 1 1 1 1 Average Overweight (x) . | . . . . . . Largest Inventory Capacity 15 | 8 15 15 15 15 15 Average Capacity 14 | 7 14 15 15 15 15 Most Carried 15 | 8 15 15 15 15 15 Average Carried 13 | 4 12 14 13 14 14 Final Capacity 15 | 8 15 15 15 15 15 Final Carried 15 | 8 15 12 15 15 14 Class Distribution -------------------- 50% | Scavenger-Mutant 49% | Mutant Dominant Class ---------------- Mutant | -10/Materials Mutant | -10/Mines Scavenger-Mutant | -9/Materials Scavenger-Mutant | -9/Storage Scavenger-Mutant | -9/Garrison Resources | -11 -10 -10 -9 -9 -9 ----------- Run | Yrd Mat Min Mat Sto Gar Matter Collected 1383 | 248 78 209 94 422 332 Remotely 42 | . 42 . . . . Salvage Created 1809 | 70 363 72 . 829 475 Parts 128 | 1 29 12 . 56 30 Haulers Intercepted . | . . . . . . Recyclers Shooed 2 | . . 1 . 1 . Parts Field Recycled . | . . . . . . Retrieved Matter . | . . . . . . Parts Self-Destructed . | . . . . . . Prevented . | . . . . . . Parts Restored . | . . . . . . Kills | -11 -10 -10 -9 -9 -9 ------- Run | Yrd Mat Min Mat Sto Gar Combat Hostiles Destroyed 57 | . 11 8 . 21 17 Melee 5 | . . . . 5 . Guns 23 | . 11 2 . 7 3 Cannons 16 | . . 2 . 9 5 AOE 13 | . . 4 . . 9 Classes Destroyed 9 | 1 4 1 . 1 2 Recycler 1 | 1 . . . . . Operator 1 | . 1 . . . . Watcher 2 | . 1 . . . 1 Swarmer 20 | . 6 6 . 4 4 Grunt 24 | . 5 1 . 11 7 Duelist 3 | . . . . . 3 Sentry 8 | . . . . 6 2 Demolisher 1 | . . . . . 1 Assembled 1 | . . 1 . . . Best Kill Streak 5 | 1 3 3 . 4 5 Combat Bots Only 5 | . 3 3 . 4 5 Max Kills in Single Turn 4 | 1 2 2 . 1 4 Gunslinging 1 | . 1 . . . . Exploded 4 | . . 2 . . 4 Melee 1 | . . . . 1 . Uniques/NPCs Destroyed . | . . . . . . Combat | -11 -10 -10 -9 -9 -9 -------- Run | Yrd Mat Min Mat Sto Gar Hostile Shots Fired 308 | . 45 23 5 142 93 Missed 96 | . 12 9 2 43 30 Hits 212 | . 33 14 3 99 63 Projectile 212 | . 33 14 3 99 63 AOE 3 | . . . . . 3 Critical Strikes 6 | . 1 . . 3 2 Damage Taken 3241 | . 373 547 65 1157 1099 Core 603 | . 70 130 16 193 194 Absorbed by Shields . | . . . . . . Core Remaining (%) 60 | 100 . 20 . . . Volleys Fired 208 | 9 35 22 1 95 46 Largest 2 | 1 2 2 2 2 2 Hottest 160 | 50 110 110 110 160 66 Shots Fired 344 | 9 70 28 2 146 89 Gun 153 | 9 66 4 1 50 23 Cannon 118 | . 4 8 1 59 46 Launcher 33 | . . 8 . 5 20 Special 40 | . . 8 . 32 . Kinetic 120 | . 6 . . 45 69 Thermal 166 | 9 39 20 2 96 . Explosive 33 | . . 8 . 5 20 Electromagnetic 25 | . 25 . . . . Robot Hit Streak 11 | 3 11 4 1 7 10 Robot Miss Streak 5 | 2 2 4 5 2 3 Penetration Max . | . . . . . . Secondary Targets 3 | . 3 . . . . Max Gunslinging Chain 1 | . 1 . . . . Shots Hit Robots 160 | 5 37 8 1 69 40 Core Hits 91 | 2 19 10 1 30 29 Critical Kills . | . . . . . . Critical Parts Destroyed 2 | . . . . 1 1 Critical Strikes 6 | 1 1 . . 2 2 Burn 2 | 1 1 . . . . Destroy 2 | . . . . 1 1 Blast 1 | . . . . . 1 Sever 1 | . . . . 1 . Melee Attacks 15 | . . . . 15 . Impact . | . . . . . . Slashing 15 | . . . . 15 . Piercing . | . . . . . . Sneak Attacks . | . . . . . . Combat Hostiles . | . . . . . . Follow-up Attacks . | . . . . . . Damage Inflicted 4711 | 76 582 415 17 1520 2101 Guns 1280 | 76 509 36 . 433 226 Cannons 1100 | . . 53 17 587 443 Explosions 1843 | . 73 318 . 20 1432 Melee 441 | . . . . 441 . Ramming 21 | . . 8 . 13 . Kinetic 1116 | . 7 . . 440 669 Thermal 1069 | 76 281 89 17 606 . Explosive 1770 | . . 318 . 20 1432 Electromagnetic 294 | . 294 . . . . Impact . | . . . . . . Slashing 441 | . . . . 441 . Piercing . | . . . . . . Highest Corruption 12 | . . 12 . . . Average Corruption 12 | . . 12 . . . Corruption Purged . | . . . . . . Corruption Blocked . | . . . . . . Effects 8 | . . 8 . . . Message Errors 2 | . . 2 . . . Energy Discharges 3 | . . 3 . . . Data Loss (minor) 2 | . . 2 . . . Data Loss (major) 1 | . . 1 . . . Overload Shots . | . . . . . . Overflow Damage 196 | . 8 59 . 11 118 Projectiles 11 | . . . . 11 . Explosions 185 | . 8 59 . . 118 Melee . | . . . . . . Knockbacks 3 | . . . . 1 2 Impact 1 | . . . . 1 . Kinetic 2 | . . . . . 2 Secondary . | . . . . . . Self-Inflicted Damage 327 | . 33 24 . . 270 Shots 14 | . 1 1 . . 12 Rammed 3 | . . 2 . 1 . Targets Rammed 3 | . . 2 . 1 . Kicked . | . . . . . . Crushed . | . . . . . . Highest Temperature 285 | . 285 192 8 10 54 Average Temperature 64 | . 83 48 7 4 29 Received Heat Transfer 864 | . 114 39 30 501 180 Siege Activations . | . . . . . . Martial Activations . | . . . . . . Shielding Activations . | . . . . . . Robots Disrupted . | . . . . . . Combat Hostiles . | . . . . . . Robots Corrupted . | . . . . . . Combat Hostiles . | . . . . . . Parts Fried 1 | . 1 . . . . Impact Corruptions . | . . . . . . Robots Melted . | . . . . . . Combat Hostiles . | . . . . . . Parts Melted 3 | 1 2 . . . . Heat Transferred 2481 | 296 766 222 37 1160 . Parts Sabotaged . | . . . . . . Parts Stolen . | . . . . . . Parts Stripped . | . . . . . . Power Chain Reactions 1 | . 1 . . . . Alert | -11 -10 -10 -9 -9 -9 ------- Run | Yrd Mat Min Mat Sto Gar Maximum Alert Level 2 | . . . 1 1 2 Low Security (%) 76 | 100 100 100 94 73 3 Level 1 12 | . . . 5 26 27 Level 2 11 | . . . . . 68 Level 3 . | . . . . . . Level 4 . | . . . . . . Level 5 . | . . . . . . High Security . | . . . . . . Max Security . | . . . . . . Peak Influence 634 | 5 95 90 217 229 634 Initial 133 | . . 3 29 76 133 Average 121 | . 28 9 78 108 462 Influence Increases 2172 | 5 309 215 346 721 576 Destroy 0b10 Robot/C 1360 | . 220 140 200 460 340 Destroy 0b10 Robot/NC 35 | 5 10 . . 5 15 Destroy Leader 272 | . 52 20 80 110 10 Allied During Kill 61 | . . 11 46 4 . Successful Hack 56 | . 23 . 4 15 14 Disable Machine 30 | . . . . 30 . Anti-Garrison Action 100 | . . . . . 100 Destroy Structure 153 | . 4 44 1 22 82 Lose Combat Pursuer 105 | . . . 15 75 15 Influence Decreases 1583 | 5 300 146 242 698 192 Entered New Map 233 | . . 6 49 106 72 Time Decay 1067 | 5 280 132 193 457 . Lost Part 139 | . 20 8 . 51 60 Lost Ally 80 | . . . . 20 60 Purge Threat 64 | . . . . 64 . Squads Dispatched 8 | . 2 . 3 3 . Investigation 6 | . 2 . 3 1 . Extermination . | . . . . . . Reinforcement 2 | . . . . 2 . Assault . | . . . . . . Garrison . | . . . . . . Intercept . | . . . . . . Searches Triggered . | . . . . . . Construction Impeded . | . . . . . . Haulers Reinforced . | . . . . . . Active Scanning Responses . | . . . . . . Cargo Convoy Interrupts . | . . . . . . Stealth | -11 -10 -10 -9 -9 -9 --------- Run | Yrd Mat Min Mat Sto Gar Distress Signals 2 | . . . . 2 . Communications Jammed . | . . . . . . Distress Signals . | . . . . . . Times Spotted 90 | . 17 14 9 32 18 Peak Tracking Total 9 | . 3 5 7 9 6 Tactical Retreats 6 | . . 1 1 3 1 Traps | -11 -10 -10 -9 -9 -9 ------- Run | Yrd Mat Min Mat Sto Gar Traps Triggered 3 | . . . 1 2 . Indirectly . | . . . . . . Trap Hack Attempts . | . . . . . . Triggered . | . . . . . . Disarmed . | . . . . . . Reprogrammed . | . . . . . . Reused . | . . . . . . Traps Extracted . | . . . . . . Installed . | . . . . . . Triggered . | . . . . . . Machines | -11 -10 -10 -9 -9 -9 ---------- Run | Yrd Mat Min Mat Sto Gar Machines Disabled 4 | . . . . 2 2 Max in Single Turn 1 | . . . . 1 1 Garrison Relay 2 | . . . . . 2 Machines Repaired . | . . . . . . Machines Dismantled . | . . . . . . Machines Sabotaged . | . . . . . . Overloaded Fab Kills . | . . . . . . Hacking | -11 -10 -10 -9 -9 -9 --------- Run | Yrd Mat Min Mat Sto Gar Machines Accessed 22 | . 8 . 5 7 2 Terminals 17 | . 7 . 2 6 2 Fabricators . | . . . . . . Repair Stations 1 | . . . 1 . . Recycling Units 2 | . 1 . 1 . . Scanalyzers 1 | . . . 1 . . Garrison Access 1 | . . . . 1 . Total Hacks 58 | . 26 . 15 14 3 Successful 22 | . 12 . 5 4 1 Failed 36 | . 14 . 10 10 2 Catastrophic 6 | . 2 . 2 1 1 Database Lockouts . | . . . . . . Manual 33 | . 20 . 7 6 . Terminals 48 | . 25 . 7 13 3 Fabricators . | . . . . . . Repair Stations 2 | . . . 2 . . Recycling Units 2 | . 1 . 1 . . Scanalyzers 5 | . . . 5 . . Garrison Access 1 | . . . . 1 . Terminal Hacks 11 | . 7 . . 3 1 Robot Analysis 1 | . 1 . . . . Prototype ID Bank 2 | . 2 . . . . Open Door 2 | . . . . 2 . Branch Access Points 1 | . 1 . . . . Terminal Index 1 | . 1 . . . . Alert Level 1 | . 1 . . . . Unreport Threat 1 | . . . . 1 . Transport Status 1 | . 1 . . . . Garrison Registry 1 | . . . . . 1 Fabricator Hacks . | . . . . . . Repair Station Hacks . | . . . . . . Recycling Unit Hacks . | . . . . . . Scanalyzer 2 | . . . 2 . . Insert Component 1 | . . . 1 . . Analyze 1 | . . . 1 . . Garrison Access Hacks 1 | . . . . 1 . Unlock Access 1 | . . . . 1 . Unauthorized Hacks 8 | . 5 . 3 . . Terminals 6 | . 4 . 2 . . Botnet 6 | . 4 . 2 . . Fabricators . | . . . . . . Repair Stations . | . . . . . . Recycling Units 2 | . 1 . 1 . . Monitor 2 | . 1 . 1 . . Scanalyzers . | . . . . . . Garrison Access . | . . . . . . Data Cores Recovered . | . . . . . . Used . | . . . . . . Hacking Detections 17 | . 6 . 4 5 2 Full Trace Events 9 | . 4 . 3 2 . Feedback Events . | . . . . . . Feedback Blocked . | . . . . . . Robot Schematics Acquired . | . . . . . . Robots Built . | . . . . . . Authchips . | . . . . . . Time . | . . . . . . Total Robot Build Rating . | . . . . . . Part Schematics Acquired 1 | . . . 1 . . Parts Built . | . . . . . . Authchips . | . . . . . . Time . | . . . . . . Total Part Build Rating . | . . . . . . Part Studies Acquired . | . . . . . . Parts Repaired . | . . . . . . Time . | . . . . . . Parts Recycled . | . . . . . . Recycled Matter . | . . . . . . Retrieved Matter . | . . . . . . Retrieved Components . | . . . . . . Parts Scanalyzed 1 | . . . 1 . . Part Schematics Acquired 1 | . . . 1 . . Parts Damaged . | . . . . . . Bothacking | -11 -10 -10 -9 -9 -9 ------------ Run | Yrd Mat Min Mat Sto Gar Used RIF Installer 1 | . . . . . 1 Robots Hacked . | . . . . . . Non-combat . | . . . . . . Combat . | . . . . . . Robot Hacks Applied . | . . . . . . Relay Couplers Released 8 | . . . . . 8 Machine Destruction 8 | . . . . . 8 Fabnet Peak Effective % . | . . . . . . Robots Rewired 3 | . . . . . 3 Allies Hacked . | . . . . . . Hacks Repelled . | . . . . . . Allies | -11 -10 -10 -9 -9 -9 -------- Run | Yrd Mat Min Mat Sto Gar Total Allies 6 | . . 3 . . 3 Largest Group 3 | . . 3 3 3 3 Highest-Rated Group 98 | . . 40 40 40 98 Highest-Rated Ally 39 | . . 16 16 16 39 Total Orders 1 | . . 1 . . . FOLLOW 1 | . . 1 . . . Ally Attacks 69 | . . 2 38 14 15 Total Damage 868 | . . 30 425 134 279 Kills 13 | . . 1 10 2 . Allies Corrupted . | . . . . . . Allies Melted . | . . . . . . Intel | -11 -10 -10 -9 -9 -9 ------- Run | Yrd Mat Min Mat Sto Gar Active Infowar (turns) 2384 | . 380 699 446 843 16 Sensors 615 | . 380 235 . . . Terrain 1769 | . . 464 446 843 16 Robot Analysis Total 1 | . 1 . . . . Derelict Logs Recovered 2 | . . 2 . . . Drone Launches . | . . . . . . Drone Recoveries . | . . . . . . Exploration | -11 -10 -10 -9 -9 -9 ------------- Run | Yrd Mat Min Mat Sto Gar Turns Passed 4946 | 113 1225 1003 446 1351 808 Spaces Moved 2476 | 51 636 667 302 493 327 Core 17 | 17 . . . . . Treads 1777 | 34 636 221 66 493 327 Legs 69 | . . 37 32 . . Wheels 613 | . . 409 204 . . Hover . | . . . . . . Flight . | . . . . . . Fastest Speed 50 | 50 160 105 115 160 160 Average Speed 152 | 144 160 130 132 174 173 Slowest Speed 240 | 160 160 190 190 240 240 Overloaded Moves . | . . . . . . Propulsion Burnouts . | . . . . . . Robots Hopped . | . . . . . . Potential Cave-ins . | . . . . . . Cave-ins Triggered 1 | . . 1 . . . Exploration Rate (%) 51 | 5 76 93 24 65 45 Regions Visited 5 Branch Regions 2 Pre-discovered Areas 2 | . . 1 . 1 . Known Exits Taken 2 | . 1 . . 1 . Unknown Exits Taken 3 | 1 . 1 1 . . Scrap Searched . | . . . . . . Spaces Dug 53 | . . 7 . 23 23 Terrain Destroyed 188 | . 3 58 . 32 95 Melee . | . . . . . . Projectile 14 | . . 7 . 7 . AOE 174 | . 3 51 . 25 95 Terrain Rammed . | . . . . . . Walls Destroyed . | . . . . . . Machines Disabled . | . . . . . . Actions | -11 -10 -10 -9 -9 -9 --------- Run | Yrd Mat Min Mat Sto Gar Total 3210 | 81 776 758 347 765 483 Wait 221 | 4 78 32 16 89 2 Move 2471 | 50 635 666 301 492 327 Hop . | . . . . . . Pick Up 89 | 13 14 11 12 23 16 Fast Attach 9 | . 2 . 1 5 1 Attach 31 | 5 3 6 4 8 5 Detach 1 | . 1 . . . . Swap 36 | . 2 10 4 13 7 Drop 60 | . 6 9 8 24 13 Fire 208 | 9 35 22 1 95 46 Melee 15 | . . . . 15 . Ram 2 | . . 2 . . . Kick . | . . . . . . Crush 1 | . . . . 1 . Escape Stasis . | . . . . . . Rewire 66 | . . . . . 66 Trap . | . . . . . . Miscellaneous . | . . . . . . Route ------- -11/Scrapyard -10/Materials (discovered 5 exits: *Mat x3 / *Min x2) -10/Mines (discovered 2 exits: *Mat x2) -9/Materials -9/Storage (discovered 2 exits: [Rec] / Gar) -9/Garrison (discovered 3 exits: [Rec x3]) History --------- Turn | Location | Event 12 | -11/Scrapyard | Discovered new exit (range 16) 114 | -11/Scrapyard | Entered Materials 126 | -10/Materials | Identified exit to Mines 318 | -10/Materials | Build established: Mutant 743 | -10/Materials | Discovered new exit (range 14) 829 | -10/Materials | Discovered new exit (range 16) 942 | -10/Materials | Discovered new exit (range 5) 1339 | -10/Materials | Entered Mines 1362 | -10/Mines | Discovered new exit (range 9) 1422 | -10/Mines | Discovered new exit (range 5) 1548 | -10/Mines | Found a damaged Exp. Sensor Array with a note attached 1551 | -10/Mines | Found Prototype Device 1552 | -10/Mines | Identified Exp. Sensor Array 1562 | -10/Mines | Assembled infested the area 1844 | -10/Mines | Learned Materials stockpile data 1877 | -10/Mines | A weapon hastily lodged in a ceiling crevice suddenly fell to the ground 1939 | -10/Mines | Assisted by bots powering up and referring to "LRC-V3" 2156 | -10/Mines | Crushed by falling debris 2156 | -10/Mines | Core integrity fell below 50% 2156 | -10/Mines | System corruption reached 10% 2187 | -10/Mines | Lost 4 parts (1p1n2w) 2342 | -10/Mines | Entered Materials 2342 | -9/Materials | Accompanied by 3 allies 2342 | -9/Materials | Evolved 2 slots: Utility x2 2656 | -9/Materials | Discovered new exit (range 6) 2722 | -9/Materials | Build established: Scavenger-Mutant 2788 | -9/Materials | Entered Storage 2788 | -9/Storage | Accompanied by 3 allies 2827 | -9/Storage | Identified exit to Garrison 2922 | -9/Storage | Lost 3 allies 3507 | -9/Storage | Learned location of Armory (-3) 3587 | -9/Storage | Found Prototype Launcher 3697 | -9/Storage | Core integrity fell below 50% 3722 | -9/Storage | Discovered new exit (range 13) 3875 | -9/Storage | Identified Gui. EMP Blaster 4139 | -9/Storage | Entered Garrison 4157 | -9/Garrison | Triggered checkpoint 4227 | -9/Garrison | Discovered new exit (range 63) 4227 | -9/Garrison | Discovered new exit (range 74) 4227 | -9/Garrison | Discovered new exit (range 30) 4364 | -9/Garrison | Lost 3 parts (1n2u) 4377 | -9/Garrison | Triggered checkpoint 4393 | -9/Garrison | Garrison Relay disabled 4459 | -9/Garrison | Installed Relay Interface Framework 4619 | -9/Garrison | Garrison Relay disabled 4843 | -9/Garrison | Triggered checkpoint 4844 | -9/Garrison | Triggered checkpoint 4895 | -9/Garrison | Lost 3 allies 4933 | -9/Garrison | Core integrity fell below 20% 4947 | -9/Garrison | Destroyed by Y-45 Defender with Heavy Assault Rifle Last Messages --------------- 04901_ Acquired Shock Bomb Launcher. 04910_ Dropped Heat Sink. 04911_ Acquired Adv. Targeting Computer. 04922_ D-53 Grenadier springs to life. 04922_ H-55 Commando springs to life. 04922_ Slug penetrates Machine. 04922_ Machine disabled. 04925_ Penetrated by Slug. 04925_ Critical hit (Destroy). 04926_ D-53 Grenadier knocked back. 04928_ Slug penetrates Machine. 04929_ D-53 Grenadier destroyed. 04931_ Penetrated by Slug. 04937_ Slug penetrates Wall. 04938_ H-55 Commando knocked back. 04941_ Critical hit (Burn: +37). 04942_ Slug penetrates Earth. 04943_ The unstable cave ceiling collapses. 04944_ Lgt. Armor Plating destroyed. 04947_ The unstable cave ceiling collapses. Map ----- +----------------------------------------------------+ | ??# ### ######## #### + | | ??# # + + | | ??# ###### ##### #### ######## ## | | ??## #????# #???# #??## ##""""## ##??????# #? | | ??## ###????# #???# #???# ## ## #???????# #? | | #### #??????# ##??# #???# ##+##### #???????# #? | | ""## #??????# #??# #???# ## #???# #???????# #? | | ### ########+##### ##### ## #???# #???????# #? | | + + + #???# #???????# #? | | #######"""####### ####### ####???# #???????# #? | | #?????# #####?# #?????# #??????# ###?????# #? | | #?????##+### #?# #?????# #??????# #?????# #? | | #??????# #?#++### ####### #??????# #?????# #? | | ###????# ### ^^^ ^ #??????# [ #?????# #? | | !#????# + ^ ^ ^ ^ #????###!%###?????# #? | | #????##### ## ####### ##????#"#! #???????# #? | | #????????# ## #?????# #?????#"!%=#???????# #? | | ##????????# ## #?????# #?????#"!! #???????# #? | | ##?????????# ## #?????#g#?????# ! !#???????# #? | | ######?????# ## ####### #?????#"# *#???????# #? | | #?????# ## #!!% =# #?###?#### #???????# ## | | #?????# ##gg * ## #????#*#???????# | | #????## ## # ###?### ###?????# | | #????# ###!!/ # ### ! #?????##### | | ###### #?##### #?# !*=#?????????? | | " + < #????## #@ #?# ##????????? | | ###### #?#### ##?## #????????? | | #????# #?#"" ##???#### ##????????? | | #????#######?#" " Y#???# #?????????? | | #????????????# " ##???# #?????????? | | ### ##????????????#" # #????#######?????????? | | #?# #?????????????#"h% ##???????????????????? | | #?# #?????????????# "%m! """#???????????????????? | | #?# #?????????????#" % "#???????????????????? | | ?## #?????????????#" * ""#???????????????????? | | ?#"^#?????????????#"" ""#???????????????????? | | ?#T #?????????????#"Y * "#???????????????????? | | ?#""#?????????????#""" **"""#???????????????????? | | ?####?????????????#" ** *"#???????????????##### | | ??????????????????#""""""""""#???????????????#"""" | | ??????????????????############???????????????#" | | ?????????????????????????????????????????????#"""" | | ?????????????????????????????????????????????##### | | ?????????????????????????????????????????????????# | | ?????????????????????????????????????????????????# | | ?????????????????????????????????????????????????? | | | | | | | | | +----------------------------------------------------+ Best States ------------- Heat Dissipation 52 Energy Generation 14 Energy Capacity 265 Matter Stores 300 Matter Capacity 300 Sight Range 16 Robot Scan Range 14 Terrain Scan Range 16 Terrain Scan Density 85 Additional Mass Support 6 Armor Coverage 300 Evasion (%) 40 Targeting Accuracy 8 Recoil Reduction 2 Item Schematics ----------------- Exp. Sensor Array | -9/Materials | Scanalyzed Robot Schematics ------------------ None Fabricated ------------ Nothing Repaired ---------- Nothing Studied --------- None Alien Tech Used ----------------- None Achievements -------------- Dramatic Entrance Join The Dark Side Quantum Hacking True Hacker Unlikely Earthworm root@ Challenges ------------ None Game ------ Seed MiniBottomlessRegenerator Manual? 0 Play Time 01:07:18 Cumulative 36.3 hours Start 2026.02.13 @ 20:10:14 End 2026.02.13 @ 21:16:44 Sessions 1 Manual Loads 0 Difficulty Rogue Special Mode None Game No. 38 Rogue 38 Adventurer 0 Explorer 0 Win Type - Total 0 Types 0/0/0/0/0/0/0/0/0/0 Lore% 20 Gallery% 25 Achievement% 18 Wizard Run 0 Options --------- Layout 1 ASCII 0 Keyboard 0 Movement Mouse Keybinds 0 Fullscreen 1 Font 24/Smallcaps Map View 50x35 Zoom Use 0% Tactical HUD 1 Map Filters NONE Filters NONE Steam 1 RUN: 9fe002bf-eaf8-4c88-8d1a-fceb9a8066e5